fUSD/lending_fUSD_20241027
["ID","MTS","AMOUNT","RATE_DAILY","PERIOD"]
[340893432,1730034640703,-962.5939,0.000146,2]
[340893433,1730034640712,-72274.9244,0.000146,2]
[340893434,1730034640721,-500.0,0.000146,2]
[340893435,1730034640731,-2000.0,0.000146,2]
[340893436,1730034640741,-200.0,0.000146,2]
[340893437,1730034640754,-2000.0,0.000146,2]
[340893438,1730034640765,-200.0,0.000146,2]
[340893439,1730034640774,-175.2,0.0001467,2]
[340893440,1730034640783,-442.30136766,0.0001469,3]
[340893441,1730034640793,-1290.55868337,0.00014697,2]
[340893442,1730034640803,-2795.889454,0.000147,2]
[340893443,1730034640812,-200.0,0.00014746,2]
[340893444,1730034640821,-200.0,0.00014746,2]
[340893445,1730034640831,-2000.0,0.00014746,2]
[340893446,1730034640844,-200.0,0.00014746,2]
[340893447,1730034640856,-172.2,0.00014765,2]
[340893448,1730034640868,-482.55,0.00014821,2]
[340893449,1730034640879,-302.4,0.00014829,2]
[340893451,1730034640891,-151.0,0.00014873,2]
[340893452,1730034640901,-200.0,0.00014893,2]
[340893453,1730034640912,-200.0,0.00014893,2]
[340893454,1730034640923,-2000.0,0.00014893,2]
[340893455,1730034640934,-200.0,0.00014893,2]
[340893456,1730034640945,-719.62693579,0.000149,2]
[340893457,1730034640956,-319.65313013,0.000149,2]
[340893458,1730034640967,-3395.11875091,0.000149,2]
[340893459,1730034640979,-154.08484883,0.000149,2]
[340893460,1730034640990,-262.85685944,0.000149,2]
[340893461,1730034641003,-5019.44370711,0.000149,2]
[340893462,1730034641014,-155.80457663,0.000149,2]
[340893463,1730034641026,-202.41667101,0.000149,2]
[340893464,1730034641038,-160.37060746,0.00014973,2]
[340893465,1730034641049,-500.0,0.00014973,2]
[340893466,1730034641060,-500.0,0.00014973,2]
[340893467,1730034641071,-500.0,0.00014973,2]
[340893468,1730034641082,-160.44392757,0.00014973,2]
[340893469,1730034641093,-1769.20547064,0.0001498,3]
[340893470,1730034641104,-151.0,0.0001499,2]
[340893471,1730034641115,-197.212874,0.0001499,2]
[340893472,1730034641127,-151.0,0.0001499,2]
[340893473,1730034641138,-151.0,0.0001499,2]
[340893474,1730034641150,-151.0,0.0001499,2]
[340893475,1730034641160,-151.0,0.0001499,2]
[340893476,1730034641171,-151.0,0.0001499,2]
[340893477,1730034641182,-151.0,0.0001499,2]
[340893478,1730034641192,-242.668049,0.0001499,2]
[340893479,1730034641201,-151.0,0.0001499,2]
[340893480,1730034641211,-151.0,0.0001499,2]
[340893481,1730034641222,-151.0,0.0001499,2]
[340893482,1730034641232,-151.0,0.0001499,2]
[340893483,1730034641243,-151.0,0.0001499,2]
[340893484,1730034641255,-183.295746,0.0001499,2]
[340893485,1730034641266,-183.295746,0.0001499,2]
[340893486,1730034641278,-151.0,0.0001499,2]
[340893487,1730034641288,-183.295746,0.0001499,2]
[340893488,1730034641299,-151.0,0.0001499,2]
[340893489,1730034641310,-183.295746,0.0001499,2]
[340893490,1730034641321,-151.0,0.0001499,2]
[340893491,1730034641332,-151.0,0.0001499,2]
[340893492,1730034641343,-151.0,0.0001499,2]
[340893493,1730034641355,-151.0,0.0001499,2]
[340893494,1730034641365,-151.0,0.0001499,2]
[340893495,1730034641375,-151.0,0.0001499,2]
[340893496,1730034641386,-151.0,0.0001499,2]
[340893497,1730034641397,-151.0,0.0001499,2]
[340893498,1730034641407,-151.0,0.0001499,2]
[340893499,1730034641418,-151.0,0.0001499,2]
[340893500,1730034641431,-151.0,0.0001499,2]
[340893501,1730034641444,-151.0,0.0001499,2]
[340893502,1730034641455,-254.142479,0.0001499,2]
[340893503,1730034641468,-254.142479,0.0001499,2]
[340893504,1730034641479,-151.0,0.0001499,2]
[340893505,1730034641490,-151.0,0.0001499,2]
[340893506,1730034641503,-254.142479,0.0001499,2]
[340893507,1730034641514,-254.142479,0.0001499,2]
[340893508,1730034641525,-151.0,0.0001499,2]
[340893509,1730034641537,-170.597629,0.0001499,2]
[340893510,1730034641549,-1054.81029637,0.0001499,2]
[340893511,1730034641559,-1054.81029637,0.0001499,2]
[340893512,1730034641570,-1054.81029637,0.0001499,2]
[340893513,1730034641579,-503.39419571,0.00014999,2]
[340893514,1730034641590,-997.1478,0.00014999,2]
[340893515,1730034641602,-77976.73153387,0.00015,2]
[340893522,1730034643248,-13020.84035346,0.00015,2]
[340893523,1730034643516,-206895.23627974,0.00015,2]
[340893524,1730034643570,-12.67802967,0.00015,2]
[340893527,1730034646626,-28359.63482336,0.00015,2]
[340893528,1730034665540,500.0,0.00044156,30]
[340893529,1730034665796,500.0,0.00044156,30]
[340893530,1730034666058,500.0,0.00044156,30]
[340893531,1730034666316,500.0,0.00044156,30]
[340893532,1730034666618,500.0,0.00044156,30]
[340893533,1730034666860,500.0,0.00044156,30]
[340893534,1730034667103,500.0,0.00044156,30]
[340893535,1730034667391,500.0,0.00044156,30]
[340893536,1730034667649,168.78577682,0.00044156,30]
[340893537,1730034740368,4000.0,0.00044156,30]
[340893538,1730034785193,24701.9459856,0.0001439,3]
[340893539,1730035084868,3669.83763324,0.0001439,3]
[340893540,1730035102358,-869.67,0.0001261,2]
[340893541,1730035102379,-300.0,0.00014299,2]
[340893542,1730035102400,-1197.4419,0.000143,2]
[340893543,1730035102422,-795.8648,0.000143,2]
[340893544,1730035102445,-167.5238,0.000143,2]
[340893545,1730035102468,-283.1869,0.000143,2]
[340893546,1730035102488,-2500.0,0.000143,2]
[340893547,1730035102509,-15537.78995533,0.000143,2]
[340893548,1730035102532,-5473.90124841,0.000143,2]
[340893549,1730035102556,-784.27752062,0.00014399,2]
[340893550,1730035102580,-179.09674588,0.00014399,2]
[340893551,1730035102603,-150.0,0.00014399,2]
[340893552,1730035102624,-1000.0,0.000144,2]
[340893553,1730035102646,-433.2501,0.000144,2]
[340893554,1730035102668,-100000.0,0.000144,2]
[340893555,1730035102689,-123463.14540793,0.000144,2]
[340893556,1730035105665,-150.0,0.000144,2]
[340893557,1730035105856,-150.0,0.000144,2]
[340893558,1730035105914,-150.0,0.000144,2]
[340893559,1730035106041,-150.0,0.000144,2]
[340893560,1730035106107,-150.0,0.000144,2]
[340893561,1730035106176,-150.0,0.000144,2]
[340893562,1730035106245,-150.0,0.000144,2]
[340893563,1730035106304,-150.0,0.000144,2]
[340893564,1730035106374,-150.0,0.000144,2]
[340893565,1730035106426,-150.0,0.000144,2]
[340893566,1730035106481,-150.0,0.000144,2]
[340893567,1730035106532,-150.0,0.000144,2]
[340893568,1730035106597,-150.0,0.000144,2]
[340893569,1730035106652,-150.0,0.000144,2]
[340893570,1730035106708,-150.0,0.000144,2]
[340893571,1730035106766,-150.0,0.000144,2]
[340893572,1730035106830,-150.0,0.000144,2]
[340893573,1730035106887,-209.73347672,0.000144,2]
[340893574,1730035106982,-150.0,0.000144,2]
[340893575,1730035113827,1113.3742665,0.000143,2]
[340893576,1730035113851,20481.80735533,0.000143,2]
[340893577,1730035141416,300.0,0.00014299,2]
[340893578,1730035218125,500.0,0.00044144,30]
[340893579,1730035218472,500.0,0.00044144,30]
[340893580,1730035218784,500.0,0.00044144,30]
[340893581,1730035219409,498.03557889,0.00044144,30]
[340893582,1730035239792,523.27125548,0.00044144,30]
[340893583,1730035256779,500.0,0.00044144,30]
[340893584,1730035257070,500.0,0.00044144,30]
[340893585,1730035257341,498.06543501,0.00044144,30]
[340893586,1730035303893,698.94,0.00044144,30]
[340893587,1730035304155,698.94,0.00044144,30]
[340893588,1730035304434,698.94,0.00044144,30]
[340893589,1730035304682,698.94,0.00044144,30]
[340893590,1730035304953,698.94,0.00044144,30]
[340893591,1730035305221,698.94,0.00044144,30]
[340893592,1730035305491,698.94,0.00044144,30]
[340893593,1730035305790,698.94,0.00044144,30]
[340893594,1730035306120,698.94,0.00044144,30]
[340893595,1730035306411,698.94,0.00044144,30]
[340893596,1730035306684,698.94,0.00044144,30]
[340893597,1730035307006,698.94,0.00044144,30]
[340893598,1730035307287,698.94,0.00044144,30]
[340893599,1730035307573,698.94,0.00044144,30]
[340893600,1730035307876,698.94,0.00044144,30]
[340893601,1730035308151,698.94,0.00044144,30]
[340893602,1730035308419,698.94,0.00044144,30]
[340893603,1730035308688,698.94,0.00044144,30]
[340893604,1730035308951,698.94,0.00044144,30]
[340893605,1730035309212,698.94,0.00044144,30]
[340893606,1730035309483,698.94,0.00044144,30]
[340893607,1730035309767,698.94,0.00044144,30]
[340893608,1730035310033,698.94,0.00044144,30]
[340893609,1730035310294,699.11804128,0.00044144,30]
[340893611,1730035526391,869.67,0.000108,2]
[340893612,1730035526413,105.8846671,0.000108,2]
[340893613,1730035530343,150.0,0.000101,2]
[340893614,1730035530364,150.0,0.000101,2]
[340893615,1730035530385,150.0,0.000101,2]
[340893616,1730035530406,150.0,0.000101,2]
[340893617,1730035530428,800.0,0.000101,2]
[340893618,1730035530450,800.0,0.000101,2]
[340893619,1730035530470,800.0,0.000101,2]
[340893620,1730035530490,800.0,0.000101,2]
[340893621,1730035530509,800.0,0.000101,2]
[340893622,1730035530528,800.0,0.000101,2]
[340893623,1730035530547,800.0,0.000101,2]
[340893624,1730035530572,800.0,0.000101,2]
[340893625,1730035530592,800.0,0.000101,2]
[340893626,1730035530611,800.0,0.000101,2]
[340893627,1730035530631,800.0,0.000101,2]
[340893628,1730035530651,800.0,0.000101,2]
[340893629,1730035530675,324.52566365,0.000101,2]
[340893630,1730035535454,150.09744179,0.0001,2]
[340893631,1730035537330,2250.0,9e-05,2]
[340893633,1730035556458,150.0,6.94e-05,2]
[340893634,1730035556480,150.0,6.94e-05,2]
[340893635,1730035556503,150.0,6.94e-05,2]
[340893636,1730035556524,150.0,6.94e-05,2]
[340893637,1730035556545,150.0,6.94e-05,2]
[340893638,1730035556566,150.0,6.94e-05,2]
[340893639,1730035556591,150.0,6.94e-05,2]
[340893640,1730035556613,5762.85701038,6.94e-05,2]
[340893641,1730035563614,150.0,9e-05,2]
[340893642,1730035563637,11.51905838,9e-05,2]
[340893643,1730035605774,150.0,0.0001172,2]
[340893644,1730035605796,150.0,0.0001172,2]
[340893645,1730035605819,150.0,0.0001172,2]
[340893646,1730035605840,150.0,0.0001172,2]
[340893647,1730035605863,150.0,0.0001172,2]
[340893648,1730035605885,86.76,0.0001172,2]
[340893649,1730035648627,856.74,0.0001439,3]
[340893650,1730035654136,-250.0,0.00013546,2]
[340893651,1730035654158,-6.409578,0.00013664,2]
[340893652,1730035658270,500.0,0.00044145,30]
[340893653,1730035658719,535.03116634,0.00044145,30]
[340893656,1730035681148,1038.49528163,0.0001,2]
[340893657,1730035691640,911.39323343,0.00013,4]
[340893665,1730035745313,500.0,0.00044162,30]
[340893666,1730035745573,500.0,0.00044162,30]
[340893667,1730035745833,500.0,0.00044162,30]
[340893668,1730035746139,500.0,0.00044162,30]
[340893669,1730035746435,500.0,0.00044162,30]
[340893670,1730035746696,500.0,0.00044162,30]
[340893671,1730035746985,500.0,0.00044162,30]
[340893672,1730035747436,500.0,0.00044162,30]
[340893673,1730035748059,500.0,0.00044162,30]
[340893674,1730035748576,500.0,0.00044162,30]
[340893675,1730035748833,500.0,0.00044162,30]
[340893676,1730035749139,500.0,0.00044162,30]
[340893677,1730035749439,500.0,0.00044162,30]
[340893678,1730035749727,500.0,0.00044162,30]
[340893679,1730035750420,500.0,0.00044162,30]
[340893680,1730035750706,500.0,0.00044162,30]
[340893681,1730035751014,500.0,0.00044162,30]
[340893682,1730035751128,-600.0,0.00012579,2]
[340893683,1730035751148,-1950.0,0.000129,2]
[340893684,1730035751168,-182.09836565,0.00013,2]
[340893685,1730035751284,-186.19100835,0.0001341,2]
[340893686,1730035751320,500.0,0.00044162,30]
[340893687,1730035751653,500.0,0.00044162,30]
[340893688,1730035751844,500.0,0.00044162,30]
[340893689,1730035752157,500.0,0.00044162,30]
[340893690,1730035752412,500.0,0.00044162,30]
[340893691,1730035752697,500.0,0.00044162,30]
[340893692,1730035752949,396.46131338,0.00044162,30]
[340893693,1730035761096,-74.60899165,0.0001341,2]
[340893694,1730035761118,-169.89957276,0.000135,2]
[340893695,1730035761138,-2451.39323329,0.000135,2]
[340893706,1730035832420,-1356.9,0.00013508,2]
[340893707,1730035832429,-157.56,0.00013565,2]
[340893708,1730035832439,-160.85,0.00013565,2]
[340893709,1730035832449,-23900.0,0.00013572,2]
[340893710,1730035832458,-150.0,0.00013623,2]
[340893711,1730035832467,-5207.92982692,0.00013623,2]
[340893712,1730035832477,-243.590422,0.00013664,2]
[340893713,1730035832486,-200.0,0.00013699,2]
[340893714,1730035832496,-172.03,0.00013755,2]
[340893715,1730035832505,-500.0,0.0001378,2]
[340893716,1730035832515,-164.61,0.00013791,2]
[340893717,1730035832523,-366.75,0.00013791,2]
[340893718,1730035832533,-329.71,0.00013791,2]
[340893719,1730035832542,-836.76,0.00013984,2]
[340893720,1730035832551,-150.0,0.00014199,2]
[340893721,1730035832560,-603.5172,0.000142,2]
[340893722,1730035832570,-8638.7528,0.000142,2]
[340893723,1730035832579,-3097.92,0.000142,2]
[340893724,1730035832588,-500.0,0.00014273,2]
[340893725,1730035832598,-78404.81837817,0.000143,2]
[340893726,1730035832608,-2153.7775,0.000143,2]
[340893727,1730035832617,-1000.0,0.000143,2]
[340893728,1730035832626,-1450.9249,0.000143,2]
[340893729,1730035832635,-484.1205,0.000143,2]
[340893730,1730035832648,-4926.51112356,0.000143,2]
[340893731,1730035832657,-152.64,0.00014357,2]
[340893732,1730035832666,-152.64,0.00014366,2]
[340893733,1730035832676,-152.64,0.00014375,2]
[340893734,1730035832688,-152.64,0.00014384,2]
[340893735,1730035832698,-152.64,0.00014393,2]
[340893736,1730035832707,-4267.83949606,0.000144,2]
[340893737,1730035832720,-346.49999998,0.000144,2]
[340893739,1730035832776,-13860.21983349,0.000144,2]
[340893741,1730035832787,-2811.64878619,0.000144,2]
[340893744,1730035832806,-97340.91299963,0.000144,2]
[340893746,1730035832815,-37730.1877,0.000144,2]
[340893747,1730035832824,-152.64,0.00014402,2]
[340893749,1730035832833,-152.64,0.00014411,2]
[340893752,1730035832843,-152.64,0.0001442,2]
[340893753,1730035832852,-152.64,0.00014429,2]
[340893755,1730035832861,-1000.0,0.00014682,2]
[340893757,1730035832871,-1021.0,0.000147,2]
[340893759,1730035832880,-202.41667101,0.000149,2]
[340893761,1730035832890,-10383.72354257,0.000149,2]
[340893763,1730035832899,-525.71371886,0.000149,2]
[340893765,1730035832909,-1573.32313583,0.000149,2]
[340893767,1730035832918,-160.85,0.00014922,2]
[340893769,1730035832927,-498.69464296,0.00014973,2]
[340893771,1730035832937,-1570.66490584,0.00014979,2]
[340893773,1730035832947,-72579.2242697,0.0001498,3]
[340893775,1730035832957,-1384.09696756,0.00014987,3]
[340893814,1730035838509,-8082.75837197,0.00014987,3]
[340893815,1730035838518,-56801.1320372,0.0001499,3]
[340893816,1730035838528,-500.0,0.00014999,2]
[340893817,1730035838537,-279.51249645,0.00014999,2]
[340893818,1730035838546,-468.99517132,0.00014999,2]
[340893819,1730035838556,-69499.19624708,0.00015,2]
[340893820,1730035838737,-1353.92,0.00015,2]
[340893821,1730035838860,-6830.42193257,0.00015,2]
[340893826,1730035840677,-2161.93590095,0.00015,2]
[340893827,1730035840801,-9624.66416515,0.00015,2]
[340893828,1730035840813,-1131.40780612,0.00015,2]
[340893829,1730035840825,-1770.9787494,0.00015,2]
[340893830,1730035840836,-2363.15004,0.00015,2]
[340893831,1730035840848,-28437.134736,0.00015,2]
[340893832,1730035840868,-1235805.68260106,0.00015,2]
[340893833,1730035840879,-6879.44999992,0.00015,2]
[340894059,1730035843360,-622638.11381415,0.00015,2]
[340894112,1730035843870,-9396.99999975,0.00015,2]
[340894376,1730035846512,-1250.39676859,0.00015,2]
[340894381,1730035846548,-1202.90156106,0.00015,2]
[340894383,1730035846559,-1233.94634438,0.00015,2]
[340894389,1730035846610,-1674.016973,0.00015,2]
[340894750,1730035868412,-150.0,0.00013635,2]
[340894751,1730035907793,498.88024001,0.00044162,30]
[340894752,1730035985581,10624.4028589,0.0001429,3]
[340894753,1730036061806,500.0,0.00044164,30]
[340894754,1730036062061,500.0,0.00044164,30]
[340894755,1730036062329,500.0,0.00044164,30]
[340894756,1730036062598,526.96561433,0.00044164,30]
[340894757,1730036475990,500.0,0.0004415,30]
[340894758,1730036476315,509.04757567,0.0004415,30]
[340894759,1730036540363,-300.0,0.00014199,2]
[340894760,1730036540393,-5509.0296087,0.000142,2]
[340894761,1730036540420,-4660.6406,0.000142,2]
[340894762,1730036540445,-12493.11360392,0.00014299,2]
[340894763,1730036540471,-150.0,0.00014299,2]
[340894764,1730036540497,-26799.8241,0.000143,2]
[340894765,1730036540524,-87.39208738,0.000143,2]
[340894766,1730036586588,1508.40287504,0.0001429,3]
[340894767,1730036599932,156.8923084,0.0004415,30]
[340894768,1730036745232,-150.0,0.0001347,2]
[340894769,1730036745942,-150.0,0.0001347,2]
[340894770,1730036746716,-150.0,0.0001347,2]
[340894771,1730036747513,-150.0,0.0001347,2]
[340894772,1730036748018,-150.0,0.0001347,2]
[340894773,1730036748724,-150.0,0.0001347,2]
[340894774,1730036750451,-150.0,0.0001347,2]
[340894775,1730036751042,-150.0,0.0001347,2]
[340894776,1730036751683,-150.0,0.0001347,2]
[340894777,1730036752144,-150.0,0.00013439,2]
[340894778,1730036773523,-150.0,0.0001337,2]
[340894779,1730036774592,-150.0,0.0001337,2]
[340894780,1730036775045,-150.0,0.0001337,2]
[340894781,1730036775838,-150.0,0.0001337,2]
[340894782,1730036777175,-150.0,0.0001337,2]
[340894783,1730036777933,-150.0,0.0001337,2]
[340894784,1730036778555,-150.0,0.0001337,2]
[340894785,1730036779289,-150.0,0.0001337,2]
[340894786,1730036794130,-645.92729448,0.00013303,2]
[340894787,1730036811000,-150.0,0.00013301,2]
[340894788,1730036811870,-150.0,0.00013301,2]
[340894789,1730036862912,-150.0,0.00013235,2]
[340894790,1730036863483,-262.96408789,0.00013235,2]
[340894791,1730036864002,-155.1,0.00013235,2]
[340894792,1730036864387,-1020.21636511,0.00013235,2]
[340894793,1730036864410,-126.79,0.00013301,2]
[340894794,1730036864437,-1905.09,0.00013307,2]
[340894795,1730036864460,-250.0,0.00013376,2]
[340894796,1730036864484,-58.29,0.00013439,2]
[340894797,1730036864508,-19639.61363489,0.0001347,2]
[340894798,1730036872985,189.05711802,0.00011514,2]
[340894799,1730036873010,676.07288198,0.00011514,2]
[340894800,1730036885428,2331.1680796,0.0001429,3]
[340894801,1730036885512,1165.5840398,0.00014321,3]
[340894807,1730037031618,-673.27568026,0.00013347,2]
[340894811,1730037038005,-466.98431974,0.00013347,2]
[340894812,1730037038014,-1533.92107026,0.00013382,2]
[340894823,1730037038985,-1044.94240715,0.00013382,2]
[340894824,1730037039009,-2910.38636511,0.0001347,2]
[340894825,1730037039030,-1365.65,0.00013482,2]
[340894827,1730037039651,-865.13,0.00013778,2]
[340894828,1730037039660,-150.0,0.00014127,2]
[340894829,1730037039670,-9552.5535,0.000142,2]
[340894830,1730037039680,-964.0083,0.000142,2]
[340894831,1730037039690,-5650.7287019,0.00014201,2]
[340894832,1730037039701,-564.86,0.00014264,2]
[340894833,1730037039711,-564.86,0.00014268,2]
[340894834,1730037039721,-564.86,0.00014271,2]
[340894835,1730037039732,-564.86,0.00014275,2]
[340894836,1730037039742,-564.86,0.00014279,2]
[340894837,1730037039751,-564.86,0.00014283,2]
[340894838,1730037039760,-564.86,0.00014286,2]
[340894839,1730037039769,-564.86,0.0001429,2]
[340894840,1730037039778,-564.86,0.00014294,2]
[340894841,1730037039788,-564.86,0.00014298,2]
[340894842,1730037039797,-912.60791262,0.000143,2]
[340894843,1730037039807,-66383.7057,0.000143,2]
[340894844,1730037039818,-245000.0,0.000143,2]
[340894845,1730037039827,-564.86,0.00014301,2]
[340894846,1730037039838,-564.86,0.00014305,2]
[340894847,1730037039848,-564.86,0.00014309,2]
[340894848,1730037039857,-564.86,0.00014313,2]
[340894849,1730037039867,-564.86,0.00014316,2]
[340894850,1730037039876,-564.86,0.0001432,2]
[340894851,1730037039887,-564.86,0.00014324,2]
[340894852,1730037039898,-564.86,0.00014328,2]
[340894853,1730037039909,-564.86,0.00014331,2]
[340894854,1730037039919,-250.0,0.00014334,2]
[340894855,1730037039930,-564.86,0.00014335,2]
[340894856,1730037039939,-696.96,0.00014396,2]
[340894857,1730037039949,-228.36,0.00014548,2]
[340894858,1730037039958,-1165.5840398,0.0001488,3]
[340894859,1730037039970,-1165.5840398,0.0001489,3]
[340894860,1730037039978,-5827.920199,0.0001489,3]
[340894861,1730037039988,-5801.501114,0.000149,2]
[340894862,1730037039998,-3074.12,0.000149,2]
[340894863,1730037040007,-43203.4284,0.000149,2]
[340894864,1730037040016,-706.5938394,0.000149,2]
[340894865,1730037040025,-339.28887538,0.000149,2]
[340894866,1730037040034,-168.27409619,0.000149,2]
[340894867,1730037040043,-500.0,0.00014973,2]
[340894868,1730037040052,-1165.5840398,0.00014976,3]
[340894870,1730037040062,-6993.5042388,0.0001498,3]
[340894872,1730037040071,-3496.7521194,0.00014986,3]
[340894873,1730037040080,-2331.1680796,0.0001499,3]
[340894875,1730037040089,-8893.4584886,0.00014996,2]
[340894876,1730037040098,-14037.5403224,0.00014996,2]
[340894877,1730037040107,-195.65874751,0.00014999,2]
[340894878,1730037040117,-178.29661992,0.00014999,2]
[340894879,1730037040126,-500.0,0.00014999,2]
[340894880,1730037040135,-794110.17122694,0.00015,2]
[340894881,1730037040376,-11649.42216217,0.00015,2]
[340894882,1730037040390,-2710.49021726,0.00015,2]
[340894883,1730037040401,-959.28971313,0.00015,2]
[340894884,1730037040413,-405.56797213,0.00015,2]
[340894885,1730037040482,150.0,0.00013592,2]
[340894892,1730037042576,-71.76969935,0.00015,2]
[340894900,1730037045685,-3673.26086903,0.00015,2]
[340894905,1730037101370,213.82,0.0004415,30]
[340894906,1730037167758,7312.45,0.0004415,30]
[340894907,1730037168000,7312.45,0.0004415,30]
[340894908,1730037168336,7312.45,0.0004415,30]
[340894909,1730037168581,7312.45,0.0004415,30]
[340894910,1730037168849,7312.45,0.0004415,30]
[340894911,1730037169159,7312.45,0.0004415,30]
[340894912,1730037169464,7312.45,0.0004415,30]
[340894913,1730037169797,7312.45,0.0004415,30]
[340894914,1730037170087,7312.45,0.0004415,30]
[340894915,1730037170363,7312.45,0.0004415,30]
[340894916,1730037170648,7312.45,0.0004415,30]
[340894917,1730037170917,7312.45,0.0004415,30]
[340894918,1730037171181,7312.45,0.0004415,30]
[340894919,1730037171442,7312.45,0.0004415,30]
[340894920,1730037171720,7312.45,0.0004415,30]
[340894921,1730037171975,7312.45,0.0004415,30]
[340894922,1730037172244,7312.45,0.0004415,30]
[340894923,1730037172540,7312.45,0.0004415,30]
[340894924,1730037172912,7312.45,0.0004415,30]
[340894925,1730037173075,7312.45,0.0004415,30]
[340894926,1730037173347,7312.45,0.00044151,30]
[340894927,1730037173670,7312.45,0.00044151,30]
[340894928,1730037173967,7312.45,0.00044151,30]
[340894929,1730037174238,7312.56654273,0.00044151,30]
[340894931,1730037235513,2113.15,0.00044151,30]
[340894932,1730037235778,2113.15,0.00044151,30]
[340894933,1730037236122,2113.15,0.00044151,30]
[340894934,1730037236376,2113.15,0.00044151,30]
[340894935,1730037236633,2113.15,0.00044151,30]
[340894936,1730037236883,2113.15,0.00044151,30]
[340894937,1730037237651,2113.15,0.00044151,30]
[340894938,1730037238029,2113.15,0.00044151,30]
[340894939,1730037238410,2113.15,0.00044151,30]
[340894940,1730037238687,2113.15,0.00044151,30]
[340894941,1730037239022,2113.15,0.00044151,30]
[340894942,1730037239619,2113.15,0.00044151,30]
[340894943,1730037239883,2113.15,0.00044151,30]
[340894944,1730037240144,2113.15,0.00044151,30]
[340894945,1730037240436,2113.15,0.00044151,30]
[340894946,1730037240719,2113.15,0.00044151,30]
[340894947,1730037240977,2113.15,0.00044151,30]
[340894948,1730037241262,2113.15,0.00044151,30]
[340894949,1730037241506,2113.15,0.00044151,30]
[340894950,1730037241845,2113.15,0.00044151,30]
[340894951,1730037242140,2113.15,0.00044151,30]
[340894952,1730037242406,2113.15,0.00044151,30]
[340894953,1730037242860,2113.15,0.00044151,30]
[340894954,1730037243142,2113.34814863,0.00044151,30]
[340894955,1730037389317,955.54,0.00012439,2]
[340894959,1730037608807,543.07943018,0.00044151,30]
[340894960,1730037686216,500.0,0.00014055,3]
[340894961,1730037699443,500.0,0.00044169,30]
[340894962,1730037699702,520.0,0.00044169,30]
[340894973,1730037786217,11430.9512421,0.0001419,3]
[340894974,1730037786333,1428.86890526,0.00014438,3]
[340894975,1730037807811,172.51,0.00013757,2]
[340894976,1730037815055,250.0,0.00013757,2]
[340894987,1730037879239,150.0,0.000145,3]
[340894988,1730037896290,602.17,0.0001419,3]
[340894989,1730037913074,155.61,0.00013757,2]
[340894990,1730037957636,130.36122774,0.00013742,2]
[340894991,1730037958663,150.0,0.00011854,2]
[340894992,1730037958684,150.0,0.00011854,2]
[340894993,1730037958707,150.0,0.00011854,2]
[340894994,1730037958728,150.0,0.00011854,2]
[340894995,1730037958751,618.4,0.00011854,2]